bitfinex/quotes_BTCUSD_20251120
["timestamp","ask_amount","ask_price","bid_price","bid_amount"]
[1763663809705,0.03219984,86919.0,86910.0,0.0002]
[1763663809914,0.03615984,86918.0,86910.0,0.0002]
[1763663810125,0.03219984,86917.0,86910.0,0.0002]
[1763663810331,0.00396,86918.0,86910.0,0.0002]
[1763663810332,0.03219984,86916.0,86910.0,0.0002]
[1763663810550,0.00396,86918.0,86910.0,0.0002]
[1763663810551,0.02146458,86915.0,86910.0,0.0002]
[1763663810750,0.0001252,86916.0,86911.0,0.02451]
[1763663810958,0.0001252,86916.0,86910.0,0.0002]
[1763663820082,0.03941927,86915.0,86910.0,0.0002]
[1763663820281,0.02136113,86914.0,86910.0,0.0002]
[1763663820483,0.323,86911.0,86910.0,0.0002]
[1763663820694,0.05210249,86905.0,86889.0,0.00012651]
[1763663821069,0.323,86901.0,86889.0,0.00012651]
[1763663821276,0.02136113,86901.0,86889.0,0.00012651]
[1763663821483,0.4660356,86910.0,86900.0,0.00093338]
[1763663821722,0.4660356,86910.0,86900.0,5e-05]
[1763663822141,0.001,86905.0,86900.0,5e-05]
[1763663822555,0.0001252,86916.0,86904.0,0.01583]
[1763663822760,0.0001252,86916.0,86909.0,0.01247]
[1763663823400,0.0001252,86916.0,86903.0,0.01247]
[1763663824456,0.4660356,86913.0,86900.0,5e-05]
[1763663824811,0.29,86908.0,86900.0,5e-05]
[1763663825012,0.34432478,86907.0,86900.0,5e-05]
[1763663825184,0.02132478,86906.0,86900.0,5e-05]
[1763663825391,0.02132478,86905.0,86900.0,5e-05]
[1763663825596,0.02132478,86904.0,86900.0,5e-05]
[1763663825944,0.4660356,86913.0,86900.0,5e-05]
[1763663826174,0.02131722,86912.0,86900.0,5e-05]
[1763663826377,0.0213176,86911.0,86900.0,5e-05]
[1763663826584,0.0001252,86916.0,86910.0,0.0283]
[1763663826851,0.0001252,86916.0,86914.0,0.01583]
[1763663827056,0.0001252,86916.0,86910.0,0.01247]
[1763663827682,0.0001252,86916.0,86914.0,0.01583]
[1763663828101,0.0001252,86916.0,86914.0,0.0402]
[1763663829844,0.0001252,86916.0,86914.0,0.0412]
[1763663830400,0.0001252,86916.0,86915.0,0.0402]
[1763663830602,0.0001252,86916.0,86915.0,0.01583]
[1763663830809,0.0001252,86916.0,86915.0,0.0402]
[1763663831018,0.01805352,86937.0,86918.0,0.05210249]
[1763663831019,0.00396,86923.0,86918.0,0.05210249]
[1763663831225,0.00396,86923.0,86922.0,0.50233957]
[1763663831541,0.00396,86927.0,86923.0,0.323]
[1763663831747,0.00396,86927.0,86926.0,0.01583]
[1763663832171,0.00396,86927.0,86926.0,0.0402]
[1763663832606,0.00396,86927.0,86915.0,0.02437]
[1763663832812,0.00396,86927.0,86916.0,0.01247]
[1763663833021,0.00396,86927.0,86926.0,0.01583]
[1763663833652,0.00396,86927.0,86926.0,0.01683]
[1763663834212,0.00396,86927.0,86926.0,0.0412]
[1763663834885,0.00396,86927.0,86926.0,0.0402]
[1763663835028,0.00500363,86974.0,86926.0,0.0402]
[1763663835029,0.00396,86943.0,86927.0,0.05210249]
[1763663835228,0.00396,86943.0,86936.0,0.13059708]
[1763663835434,0.00396,86943.0,86942.0,0.0283]
[1763663836098,0.00396,86943.0,86942.0,0.01247]
[1763663836302,0.00396,86943.0,86926.0,0.001]
[1763663836585,0.00396,86927.0,86920.0,0.00025234]
[1763663837170,0.00703,86921.0,86920.0,0.00025234]
[1763663837372,0.01099,86921.0,86920.0,0.00025234]
[1763663837594,0.00396,86921.0,86920.0,0.00025234]
[1763663837799,0.00396,86921.0,86920.0,0.04045234]
[1763663838819,0.02201271,86921.0,86920.0,0.09255483]
[1763663839024,0.02201271,86921.0,86920.0,0.00025234]
[1763663839427,0.00396,86921.0,86920.0,0.00025234]
[1763663841201,0.00396,86921.0,86920.0,0.04045234]
[1763663842140,0.00396,86921.0,86920.0,0.04145234]
[1763663842337,0.00307,86962.0,86920.0,0.05525813]
[1763663842338,0.00396,86933.0,86920.0,0.05525813]
[1763663842556,0.00396,86934.0,86925.0,0.323]
[1763663842725,0.00396,86934.0,86921.0,0.02437]
[1763663842726,0.01805189,86930.0,86921.0,0.02437]
[1763663842927,0.01805189,86930.0,86924.0,0.323]
[1763663843133,0.01805189,86930.0,86929.0,0.0283]
[1763663843280,0.01805189,86930.0,86929.0,0.06647436]
[1763663843478,0.01805189,86930.0,86929.0,0.05267]
[1763663844507,0.01805189,86930.0,86929.0,0.01247]
[1763663844906,0.01805189,86930.0,86929.0,0.0283]
[1763663845110,0.01805189,86930.0,86920.0,0.00025234]
[1763663845111,0.01805189,86930.0,86921.0,0.01247]
[1763663845317,0.01805189,86930.0,86922.0,0.11476708]
[1763663845571,0.01805189,86930.0,86929.0,0.01583]
[1763663845953,0.00396,86930.0,86929.0,0.001]
[1763663846147,0.00396,86930.0,86929.0,0.0422]
[1763663846357,0.00396,86930.0,86929.0,0.0412]
[1763663846557,0.00396,86930.0,86929.0,0.0402]
[1763663847680,0.00396,86930.0,86929.0,0.42971896]
[1763663847879,0.00396,86930.0,86929.0,0.41530249]
[1763663848438,0.00396,86930.0,86929.0,0.323]
[1763663848637,0.00396,86930.0,86929.0,0.33883]
[1763663848851,0.00396,86930.0,86929.0,0.3642]
[1763663849063,0.00396,86930.0,86929.0,0.3652]
[1763663849459,0.00396,86930.0,86929.0,0.34083]
[1763663849898,0.00396,86930.0,86929.0,0.3652]
[1763663850165,0.00396,86930.0,86929.0,0.40172]
[1763663850500,0.01805188,86933.0,86930.0,0.37510249]
[1763663850702,1.88e-06,86933.0,86932.0,0.50544957]
[1763663850903,0.00749,86971.0,86934.0,0.05210249]
[1763663851101,0.00392,86963.0,86945.0,0.0123]
[1763663851507,0.01804892,86961.0,86945.0,0.0123]
[1763663851708,0.01804892,86961.0,86947.0,0.323]
[1763663852023,0.01804892,86961.0,86948.0,0.04748371]
[1763663852255,0.01817473,86961.0,86945.0,0.0123]
[1763663852453,0.4810256,86960.0,86937.0,0.01146]
[1763663852619,0.4660356,86950.0,86937.0,0.01146]
[1763663853141,0.01499,86959.0,86937.0,0.01146]
[1763663854431,0.00749,86939.0,86922.0,0.34649]
[1763663854599,0.01141,86939.0,86925.0,0.05210249]
[1763663855004,0.00392,86939.0,86927.0,0.05210249]
[1763663855419,0.00392,86939.0,86937.0,0.001]
[1763663855749,0.02998,86938.0,86937.0,0.001]
[1763663856064,0.00392,86939.0,86937.0,0.001]
[1763663856264,0.00392,86939.0,86922.0,0.01146]
[1763663856265,0.00392,86939.0,86927.0,0.02349]
[1763663856819,0.00392,86939.0,86937.0,0.001]
[1763663857130,0.00392,86939.0,86922.0,0.01246]
[1763663857582,0.00392,86939.0,86923.0,0.11476708]
[1763663857816,0.00392,86939.0,86924.0,0.06719943]
[1763663858010,0.00392,86939.0,86925.0,0.07559249]
[1763663859034,0.00392,86939.0,86926.0,0.11476708]
[1763663859241,0.00392,86939.0,86927.0,0.323]
[1763663860042,0.00392,86939.0,86922.0,0.01146]
[1763663860243,0.00392,86939.0,86925.0,0.34649]
[1763663860545,0.000588,86939.0,86938.0,0.01604]
[1763663860759,0.00392,86939.0,86938.0,0.01604]
[1763663861129,0.00012581,86961.0,86939.0,0.01146]
[1763663861351,0.0253317,86960.0,86939.0,0.01146]
[1763663861574,0.0214117,86959.0,86927.0,0.37510249]
[1763663861842,0.4774556,86960.0,86928.0,0.16060391]
[1763663861843,0.0289117,86958.0,86928.0,0.16060391]
[1763663862115,0.4660356,86950.0,86928.0,0.04583683]
[1763663862330,0.4660356,86950.0,86920.0,0.00025234]
[1763663862530,0.02890312,86949.0,86920.0,0.00025234]
[1763663862740,0.0075,86949.0,86920.0,0.00025234]
[1763663862940,0.01805211,86944.0,86920.0,0.00025234]
[1763663863317,0.01805211,86944.0,86923.0,0.03729532]
[1763663863723,0.01805211,86944.0,86924.0,0.07216747]
[1763663863902,0.01805211,86944.0,86925.0,0.013805]
[1763663864084,0.01805211,86944.0,86925.0,0.037295]
[1763663864287,0.01805211,86944.0,86926.0,0.05210249]
[1763663864491,0.01805211,86944.0,86928.0,0.05210249]
[1763663864721,0.4660356,86950.0,86928.0,0.03814275]
[1763663864926,0.4660356,86950.0,86927.0,0.02349]
[1763663865546,0.0075,86956.0,86927.0,0.02349]
[1763663865773,0.4660356,86950.0,86927.0,0.02349]
[1763663865989,0.4660356,86950.0,86920.0,0.02374234]
[1763663866336,0.4660356,86940.0,86920.0,0.00025234]
[1763663866683,0.0075,86949.0,86920.0,0.00025234]
[1763663866937,0.02141202,86948.0,86920.0,0.00025234]
[1763663867138,0.02141202,86947.0,86920.0,0.00025234]
[1763663867376,0.02142261,86946.0,86920.0,0.00025234]
[1763663867546,0.0075,86949.0,86920.0,0.00025234]
[1763663867709,0.0214232,86948.0,86920.0,0.00025234]
[1763663867913,0.01805231,86943.0,86920.0,0.00025234]
[1763663868114,0.01805231,86943.0,86923.0,0.01380532]
[1763663868356,0.01805231,86943.0,86923.0,0.02349]
[1763663868566,0.00392,86942.0,86923.0,0.03729532]
[1763663868963,0.00392,86942.0,86924.0,0.02349]
[1763663869178,0.00392,86942.0,86925.0,0.013805]
[1763663869711,0.00392,86942.0,86924.0,0.02349]
[1763663869911,0.00392,86942.0,86926.0,0.01380484]
[1763663870120,0.00392,86942.0,86924.0,0.02349]
[1763663870339,0.00392,86942.0,86925.0,0.013805]
[1763663870553,0.4660356,86940.0,86920.0,0.00025234]
[1763663870773,0.0075,86921.0,86920.0,0.00025234]
[1763663870981,0.01892,86921.0,86920.0,0.00025234]
[1763663871553,0.04035764,86921.0,86920.0,0.00025234]
[1763663871753,0.02893764,86921.0,86920.0,0.00025234]
[1763663871980,0.02893764,86921.0,86920.0,0.00067016]
[1763663871981,0.0108375,86921.0,86920.0,0.00067016]
[1763663872183,0.0177475,86921.0,86920.0,0.00067016]
[1763663872382,0.03916994,86921.0,86920.0,0.00067016]
[1763663872788,0.05308696,86921.0,86920.0,0.00067016]
[1763663872997,3.06378968,86921.0,86920.0,0.00067016]
[1763663873199,3.64154425,86921.0,86920.0,7.016e-05]
[1763663873403,3.0,86908.0,86900.0,5e-05]
[1763663873725,0.01368,86901.0,86900.0,0.0001752]
[1763663874112,0.02052,86901.0,86900.0,0.00274066]
[1763663875420,0.00684,86901.0,86900.0,0.00274066]
[1763663875621,0.01076,86901.0,86900.0,0.00274066]
[1763663878229,0.0176,86901.0,86900.0,0.00274066]
[1763663878448,0.01076,86901.0,86900.0,0.00274066]
[1763663879929,0.00392,86901.0,86900.0,0.00274066]
[1763663880755,0.00392,86901.0,86900.0,0.04227066]
[1763663880953,0.00392,86901.0,86900.0,0.00274066]
[1763663881746,0.01076,86901.0,86900.0,0.00274066]
[1763663881952,0.00392,86901.0,86900.0,0.04227066]
[1763663882161,0.00392,86901.0,86900.0,0.00274066]
[1763663883335,0.00392,86901.0,86900.0,0.01785066]
[1763663883486,0.00392,86901.0,86900.0,0.00274066]
[1763663883690,0.01076,86901.0,86900.0,0.00274066]
[1763663883908,0.00392,86901.0,86900.0,0.00274066]
[1763663884132,0.00392,86901.0,86900.0,0.04138066]
[1763663884333,0.00392,86901.0,86900.0,0.09348315]
[1763663884535,0.00392,86901.0,86900.0,0.00274066]
[1763663885628,0.00392,86901.0,86900.0,0.04138066]
[1763663885844,0.00392,86901.0,86900.0,0.09348315]
[1763663886031,0.01805713,86905.0,86901.0,0.323]
[1763663886224,0.01805713,86905.0,86904.0,0.01511]
[1763663886586,0.01805713,86905.0,86904.0,0.01754919]
[1763663887305,0.01805713,86905.0,86904.0,0.09318168]
[1763663887511,0.01805713,86905.0,86904.0,0.42561737]
[1763663888274,0.01805713,86905.0,86904.0,0.41618168]
[1763663888478,0.01805713,86905.0,86904.0,0.34054919]
[1763663888681,0.01805713,86905.0,86904.0,0.01754919]
[1763663889381,0.01805713,86905.0,86904.0,0.01854919]
[1763663889595,0.01805713,86905.0,86904.0,0.04207919]
[1763663889883,0.01805713,86905.0,86904.0,0.00243919]
[1763663890319,0.01805713,86905.0,86904.0,0.00443919]
[1763663891439,0.01805713,86905.0,86904.0,0.04307919]
[1763663891672,0.01805713,86905.0,86904.0,0.01954919]
[1763663891790,0.00392,86909.0,86904.0,0.04207919]
[1763663892001,0.00392,86909.0,86908.0,0.01192]
[1763663892205,0.00392,86909.0,86908.0,0.02934294]
[1763663892400,0.00392,86909.0,86908.0,0.01423294]
[1763663892733,0.00392,86909.0,86908.0,0.05287294]
[1763663894471,0.00392,86909.0,86908.0,0.01423294]
[1763663894613,0.00392,86909.0,86908.0,0.05287294]
[1763663895032,0.00392,86909.0,86908.0,0.02934294]
[1763663895226,0.02197513,86909.0,86908.0,0.01423294]
[1763663895644,0.02197513,86909.0,86908.0,0.00231294]
[1763663895895,0.03563513,86909.0,86908.0,0.00231294]
[1763663896408,0.05701352,86909.0,86908.0,0.00231294]
[1763663896979,0.06770364,86909.0,86908.0,0.00231294]
[1763663897802,0.39070364,86909.0,86908.0,0.00231294]
[1763663898368,0.39727908,86909.0,86908.0,0.00231294]
[1763663898516,0.44938157,86909.0,86908.0,0.00231294]
[1763663898925,0.45038157,86909.0,86908.0,0.00331294]
[1763663899332,0.45038157,86909.0,86908.0,0.00231294]
[1763663899586,0.06358896,86909.0,86908.0,0.00231294]
[1763663899797,0.07428345,86909.0,86908.0,0.00231294]
[1763663899959,0.07428345,86909.0,86900.0,0.0001752]
[1763663899960,0.05210249,86902.0,86900.0,0.0001752]
[1763663900159,0.46944068,86901.0,86900.0,0.0001752]
[1763663900359,0.44546594,86901.0,86900.0,0.0001752]
[1763663900559,0.39336345,86901.0,86900.0,0.0001752]
[1763663900727,0.03207288,86901.0,86900.0,0.0001752]
[1763663900927,0.03215811,86901.0,86900.0,0.0001752]
[1763663901133,0.01075,86901.0,86900.0,0.0001752]
[1763663901440,0.02197882,86901.0,86900.0,0.0001752]
[1763663902094,0.02880882,86901.0,86900.0,0.0001752]
[1763663903068,0.02197882,86901.0,86900.0,0.0001752]
[1763663903494,0.02880882,86901.0,86900.0,0.0001752]
[1763663903737,0.03563882,86901.0,86900.0,0.0001752]
[1763663903940,0.02197882,86901.0,86900.0,0.0001752]
[1763663905617,0.02197882,86901.0,86900.0,0.00042762]
[1763663906139,0.01758,86901.0,86900.0,0.00042762]
[1763663906298,0.01075,86901.0,86900.0,0.00042762]
[1763663906639,0.00392,86901.0,86900.0,0.00042762]
[1763663907324,0.00392,86901.0,86900.0,0.01553762]
[1763663907910,0.00392,86901.0,86900.0,0.03906762]
[1763663908113,0.00392,86901.0,86900.0,0.00042762]
[1763663908114,0.01758,86901.0,86900.0,0.00042762]
[1763663908334,0.01758,86901.0,86889.0,0.00012651]
[1763663908513,0.0064,86890.0,86889.0,0.00012651]
[1763663908911,0.03427007,86890.0,86889.0,0.00012651]
[1763663909815,0.0523298,86890.0,86889.0,0.00012651]
[1763663910518,0.08112692,86890.0,86889.0,0.00012651]
[1763663911475,0.08112692,86890.0,86888.0,100.0]
[1763663911676,0.03427007,86889.0,86888.0,100.0]
[1763663912690,0.04499351,86889.0,86888.0,100.0]
[1763663913075,0.45579562,86889.0,86888.0,100.0]
[1763663913297,3.77232293,86889.0,86888.0,99.81098773]
[1763663913487,3.77232293,86889.0,86888.0,99.77637279]
[1763663913694,0.5957804,86889.0,86888.0,99.77637279]
[1763663913895,0.39269951,86889.0,86888.0,99.77637279]
[1763663914071,0.37191351,86889.0,86888.0,99.77637279]
[1763663914272,0.36119007,86889.0,86888.0,99.77637279]
[1763663914475,0.03819007,86889.0,86888.0,99.77637279]
[1763663914804,0.03179007,86889.0,86888.0,99.77675149]
[1763663915348,0.01132,86889.0,86888.0,99.77675149]
[1763663915548,0.00492,86889.0,86888.0,99.77675149]
[1763663915798,0.00492,86889.0,86888.0,99.776878]
[1763663916127,0.01805973,86890.0,86888.0,99.799728]
[1763663916310,0.01805973,86890.0,86889.0,0.0392]
[1763663916604,0.00392,86890.0,86889.0,0.0392]
[1763663916781,0.78130671,86920.0,86889.0,0.0392]
[1763663916985,0.78130671,86920.0,86900.0,0.01635]
[1763663917225,0.00404577,86901.0,86900.0,0.01635]
[1763663917531,0.00404577,86901.0,86900.0,0.0392]
[1763663917809,0.02210491,86901.0,86900.0,0.0392]
[1763663919037,0.02210491,86901.0,86900.0,0.0402]
[1763663919472,0.02210491,86901.0,86900.0,0.0412]
[1763663919962,0.04016372,86901.0,86900.0,0.0412]
[1763663920179,0.04016372,86901.0,86900.0,0.01835]
[1763663920749,0.04016372,86901.0,86900.0,0.0412]
[1763663921380,0.04016372,86901.0,86900.0,0.0402]
[1763663921780,0.04016372,86901.0,86900.0,0.001]
[1763663921781,0.02210458,86901.0,86900.0,0.001]
[1763663921980,0.02210458,86901.0,86889.0,0.00047365]
[1763663922185,0.02028224,86901.0,86889.0,0.00012651]
[1763663922384,0.02028224,86901.0,86900.0,0.001]
[1763663922385,0.00392,86901.0,86900.0,0.001]
[1763663922595,0.00392,86901.0,86900.0,0.002]
[1763663923013,0.00392,86901.0,86900.0,0.003]
[1763663923209,0.00392,86901.0,86900.0,0.002]
[1763663923446,0.00392,86901.0,86889.0,0.00012651]
[1763663923628,0.78130671,86900.0,86889.0,0.00012651]
[1763663924595,0.78130671,86900.0,86889.0,0.00112651]
[1763663924799,0.02145674,86899.0,86889.0,0.00112651]
[1763663925176,0.02145674,86898.0,86889.0,0.00212651]
[1763663925344,0.02145674,86897.0,86889.0,0.00212651]
[1763663925550,0.02145674,86896.0,86889.0,0.00212651]
[1763663925747,0.78130671,86900.0,86889.0,0.00212651]
[1763663925748,0.34445674,86895.0,86889.0,0.00212651]
[1763663925893,0.03218634,86894.0,86889.0,0.00012651]
[1763663926248,0.02145674,86893.0,86889.0,0.00012651]
[1763663926479,0.03218674,86892.0,86889.0,0.00112651]
[1763663926696,0.03218674,86892.0,86889.0,0.00212651]
[1763663926927,0.02145674,86892.0,86889.0,0.00212651]
[1763663927340,0.02473224,86898.0,86889.0,0.00212651]
[1763663927539,0.02473224,86898.0,86892.0,0.00025246]
[1763663927823,0.01072938,86897.0,86892.0,0.00025246]
[1763663928239,0.323,86895.0,86892.0,0.00025246]
[1763663928370,0.03219306,86894.0,86892.0,0.00025246]
[1763663928556,0.03219306,86893.0,86892.0,0.00025246]
[1763663928760,0.35519306,86893.0,86892.0,0.00025246]
[1763663929919,0.03219306,86893.0,86892.0,0.00025246]
[1763663930519,0.03218844,86893.0,86892.0,0.00025246]
[1763663931285,0.02145742,86893.0,86892.0,0.00025246]
[1763663931504,0.00392,86893.0,86892.0,0.00025246]
[1763663931722,0.02537934,86893.0,86892.0,0.00025246]
[1763663932157,0.03610796,86893.0,86892.0,0.00025246]
[1763663933282,0.02537934,86893.0,86892.0,0.00025246]
[1763663933503,0.04344216,86893.0,86892.0,0.00025246]
[1763663933715,0.02198282,86893.0,86892.0,0.00025246]
[1763663935055,0.02198282,86893.0,86892.0,0.03945246]
[1763663935271,0.0400441,86893.0,86892.0,0.03945246]
[1763663935488,0.02198128,86893.0,86892.0,0.03945246]
[1763663935704,0.00392,86893.0,86892.0,0.03945246]
[1763663935916,0.00392,86893.0,86892.0,0.01660246]
[1763663936135,0.00392,86893.0,86892.0,0.03945246]
[1763663936956,0.00392,86893.0,86892.0,0.04045246]
[1763663937371,0.00392,86893.0,86892.0,0.01760246]
[1763663937661,0.00392,86893.0,86892.0,0.00125246]
[1763663938337,0.00392,86893.0,86892.0,0.00025246]
[1763663938541,0.04004165,86893.0,86892.0,0.00025246]
[1763663938757,0.04004165,86893.0,86892.0,0.00125246]
[1763663939065,0.00392,86893.0,86892.0,0.00125246]
[1763663939211,0.02198078,86893.0,86892.0,0.00125246]
[1763663939412,0.02198078,86893.0,86892.0,0.00025246]
[1763663939847,0.02198078,86893.0,86892.0,0.01660246]
[1763663940053,0.02198078,86893.0,86892.0,0.1543864]
[1763663940280,0.02198078,86893.0,86892.0,0.01760246]
[1763663940519,0.02198078,86893.0,86892.0,0.04045246]
[1763663940956,0.00684,86927.0,86900.0,0.46607245]
[1763663941158,0.00684,86927.0,86892.0,0.04045246]
[1763663941159,0.323,86919.0,86892.0,0.00125246]
[1763663941315,0.02147201,86918.0,86892.0,0.00125246]
[1763663941531,0.02147201,86917.0,86892.0,0.01372537]
[1763663941711,0.02147201,86916.0,86892.0,0.01272537]
[1763663941912,0.323,86919.0,86892.0,0.01272537]
[1763663941913,0.02147201,86915.0,86893.0,0.02285]
[1763663942143,0.01122,86926.0,86893.0,0.02285]
[1763663942345,0.02538652,86925.0,86914.0,0.0121]
[1763663942519,0.02146652,86924.0,86914.0,0.0121]
[1763663942722,0.02146652,86924.0,86892.0,0.00025246]
[1763663942723,0.0073,86915.0,86892.0,0.00025246]
[1763663942968,0.0073,86905.0,86892.0,0.00125246]
[1763663943113,0.00392,86904.0,86892.0,0.00125246]
[1763663943623,0.00392,86904.0,86892.0,0.1161864]
[1763663944055,0.0073,86893.0,86892.0,0.00125246]
[1763663944258,0.02878124,86893.0,86892.0,0.00125246]
[1763663944460,0.04682255,86893.0,86892.0,0.00125246]
[1763663944842,0.03952255,86893.0,86892.0,0.00125246]
[1763663945052,0.02878124,86893.0,86892.0,0.00125246]
[1763663945275,0.02886325,86893.0,86892.0,0.00025246]
[1763663945480,0.02156325,86893.0,86892.0,0.00025246]
[1763663946279,8.201e-05,86893.0,86892.0,0.00025246]
[1763663947078,0.00738201,86893.0,86892.0,0.00025246]
[1763663947768,8.201e-05,86893.0,86892.0,0.00025246]
[1763663948956,0.00738201,86893.0,86892.0,0.00025246]
[1763663949138,8.201e-05,86893.0,86892.0,0.00025246]
[1763663949340,0.00738201,86893.0,86892.0,0.00025246]
[1763663949877,0.01468201,86893.0,86892.0,0.00025246]
[1763663950036,0.03617832,86893.0,86892.0,0.00025246]
[1763663951266,0.04693024,86893.0,86892.0,0.00025246]
[1763663951483,0.42203273,86893.0,86892.0,0.00025246]
[1763663951687,0.44679041,86893.0,86892.0,0.00025246]
[1763663951889,0.44678394,86893.0,86892.0,0.00025246]
[1763663952412,0.39468145,86893.0,86892.0,0.00025246]
[1763663952625,0.07168145,86893.0,86892.0,0.00025246]
[1763663952766,0.03962377,86893.0,86892.0,0.00025246]
[1763663953211,0.02157832,86893.0,86892.0,0.00025246]
[1763663953614,8.201e-05,86893.0,86892.0,0.00025246]
[1763663954128,8.201e-05,86893.0,86892.0,0.1151864]
[1763663954330,8.201e-05,86893.0,86892.0,0.00025246]
[1763663954751,0.00108201,86893.0,86892.0,0.00025246]
[1763663955473,0.00738201,86893.0,86892.0,0.00025246]
[1763663955744,0.02544404,86893.0,86892.0,0.00125246]
[1763663956214,0.02544404,86893.0,86892.0,0.00225246]
[1763663956413,0.02544404,86893.0,86892.0,0.00125246]
[1763663956631,0.01814404,86893.0,86892.0,0.00125246]
[1763663956781,0.01814404,86893.0,86892.0,0.04161246]
[1763663957194,8.201e-05,86893.0,86892.0,0.04161246]
[1763663957588,0.01814184,86893.0,86892.0,0.04161246]
[1763663959048,0.01814184,86893.0,86892.0,0.04061246]
[1763663959310,0.01814184,86893.0,86892.0,0.53064889]
[1763663959500,8.201e-05,86893.0,86892.0,0.59365706]
[1763663960057,8.201e-05,86893.0,86892.0,0.41771495]
[1763663960181,8.201e-05,86893.0,86892.0,0.42765202]
[1763663960382,8.201e-05,86893.0,86892.0,0.36461246]
[1763663960730,8.201e-05,86893.0,86892.0,0.41671495]
[1763663961022,8.201e-05,86893.0,86892.0,0.48075451]
[1763663961320,8.201e-05,86893.0,86892.0,0.59568845]
[1763663961669,8.201e-05,86893.0,86892.0,0.53364889]
[1763663961905,8.201e-05,86893.0,86892.0,0.53464889]
[1763663962126,0.00392,86904.0,86893.0,0.37510249]
[1763663962337,0.00392,86904.0,86903.0,0.50644957]
[1763663962564,0.00729,86942.0,86903.0,0.50644957]
[1763663962565,0.00392,86921.0,86920.0,0.46607245]
[1763663962768,0.00392,86921.0,86912.0,0.04131158]
[1763663962769,0.00041965,86921.0,86912.0,0.04131158]
[1763663962919,0.00041965,86921.0,86920.0,0.02868]
[1763663963528,0.00041965,86921.0,86920.0,0.0121]
[1763663963733,0.00041965,86921.0,86920.0,0.0141]
[1763663963941,0.00041965,86921.0,86920.0,0.002]
[1763663964752,0.0184763,86921.0,86920.0,0.002]
[1763663964952,0.03653333,86921.0,86920.0,0.002]
[1763663965656,0.03653333,86921.0,86920.0,0.01758]
[1763663966010,0.03653333,86921.0,86920.0,0.001]
[1763663966579,0.03653333,86921.0,86902.0,0.0121]
[1763663966580,0.05111333,86921.0,86902.0,0.0121]
[1763663966791,0.04382333,86921.0,86920.0,0.001]
[1763663967405,0.05111333,86921.0,86896.0,0.0121]
[1763663967600,0.323,86919.0,86896.0,0.0121]
[1763663968170,0.33029,86919.0,86896.0,0.0121]
[1763663968374,0.46607245,86910.0,86892.0,0.00089196]
[1763663968606,0.03653333,86921.0,86893.0,0.02378]
[1763663968834,0.02145363,86920.0,86893.0,0.02378]
[1763663969034,0.02145363,86919.0,86893.0,0.02378]
[1763663969333,0.35174363,86919.0,86892.0,0.00089196]
[1763663969531,0.46607245,86910.0,86892.0,0.00089196]
[1763663969869,0.323,86919.0,86892.0,0.00089196]
[1763663970125,0.00729,86909.0,86892.0,0.00089196]
[1763663970671,0.46607245,86910.0,86892.0,0.00089196]
[1763663971041,0.02144388,86909.0,86892.0,0.00089196]
[1763663971241,0.46607245,86910.0,86892.0,0.00089196]
[1763663971404,0.0214448,86909.0,86892.0,0.00089196]
[1763663971610,0.46607245,86902.0,86892.0,0.00089196]
[1763663971831,0.00392,86901.0,86892.0,0.00089196]
[1763663972049,0.09273654,86899.0,86892.0,0.00089196]
[1763663972252,0.24167398,86895.0,86892.0,0.00089196]
[1763663972452,0.24167398,86895.0,86889.0,0.04085347]
[1763663972453,0.23017608,86890.0,86889.0,0.04085347]
[1763663972650,0.31444521,86890.0,86889.0,0.04085347]
[1763663972854,0.63744521,86890.0,86889.0,0.04085347]
[1763663973055,0.65097842,86890.0,86889.0,0.04085347]
[1763663973228,3.65097842,86890.0,86889.0,0.04085347]
[1763663973632,3.65097842,86890.0,86889.0,0.00635766]
[1763663973855,3.65097842,86890.0,86888.0,99.74810887]
[1763663973856,3.37510249,86889.0,86888.0,99.74810887]
[1763663974058,3.45234507,86889.0,86888.0,99.71348729]
[1763663974293,3.45234507,86889.0,86888.0,99.67162066]
[1763663974583,3.45234507,86889.0,86888.0,99.6023775]
[1763663974784,3.45234507,86889.0,86888.0,99.56775592]
[1763663974998,3.45234507,86889.0,86888.0,99.53313434]
[1763663975197,3.45626507,86889.0,86888.0,99.49851276]
[1763663975497,3.45626507,86889.0,86888.0,99.46389118]
[1763663975675,3.45626507,86889.0,86888.0,99.39464802]
[1763663975883,3.40726913,86889.0,86888.0,99.39464802]
[1763663976087,3.46512275,86889.0,86888.0,99.39464802]
[1763663976281,3.44817172,86889.0,86888.0,99.39464802]
[1763663976464,3.45523735,86889.0,86888.0,99.39464802]
[1763663976665,3.46115735,86889.0,86888.0,99.39464802]
[1763663976871,3.49777286,86889.0,86888.0,99.39464802]
[1763663977271,3.48985286,86889.0,86888.0,99.39464802]
[1763663977471,3.49377286,86889.0,86888.0,99.39464802]
[1763663978110,3.51453262,86889.0,86888.0,99.39464802]
[1763663978525,3.46787306,86889.0,86888.0,99.39464802]
[1763663978732,3.50534325,86889.0,86888.0,99.39464802]
[1763663978932,0.06015506,86889.0,86888.0,99.39464802]
[1763663979138,3.49961278,86889.0,86888.0,99.39464802]
[1763663979305,3.53190288,86889.0,86888.0,99.39464802]
[1763663979505,3.77158288,86889.0,86888.0,99.39464802]
[1763663979723,3.77550288,86889.0,86888.0,99.39464802]
[1763663980207,3.77158288,86889.0,86888.0,99.39464802]
[1763663980446,3.74321278,86889.0,86888.0,99.39464802]
[1763663980620,3.77223909,86889.0,86888.0,99.39464802]
[1763663980836,3.78705557,86889.0,86888.0,98.27121024]
[1763663981004,3.78129577,86889.0,86888.0,97.73329827]
[1763663981211,3.78129577,86889.0,86888.0,97.69867144]
[1763663981212,3.80813433,86889.0,86888.0,97.69867144]
[1763663981410,3.83665577,86889.0,86888.0,97.66404461]
[1763663981605,3.83665577,86889.0,86888.0,97.62941778]
[1763663981811,3.83665577,86889.0,86888.0,97.59479095]
[1763663982016,3.83465577,86889.0,86888.0,97.56016412]
[1763663982237,3.83465577,86889.0,86888.0,97.52553729]
[1763663982518,3.86829429,86889.0,86888.0,97.49091046]
[1763663982681,3.83365577,86889.0,86888.0,97.45628363]
[1763663982881,3.83065577,86889.0,86888.0,97.42164895]
[1763663983104,3.83065577,86889.0,86888.0,97.38701427]
[1763663983398,3.83365577,86889.0,86888.0,97.31774491]
[1763663983546,3.83765577,86889.0,86888.0,97.28311023]
[1763663983747,3.84065577,86889.0,86888.0,97.24847555]
[1763663983962,3.83765577,86889.0,86888.0,97.21384087]
[1763663984270,3.88636925,86889.0,86888.0,97.17920619]
[1763663984478,3.85573073,86889.0,86888.0,97.14457151]
[1763663984660,3.85573073,86889.0,86888.0,97.10993683]
[1763663984661,3.14390461,86889.0,86888.0,97.10993683]